[Event "Smuk Skak GM Tournament 2021"]
[Site "Skanderborg, Denmark"]
[Date "2021.08.18"]
[Round "5.3"]
[White "Janik, Igor"]
[Black "Solodovnichenko, Yuri"]
[Result "0-1"]
[TimeControl "90 minutes + 30 minutes at move 40, 30 secs pr move from move 1"]
[WhiteTitle "IM"]
[BlackTitle "GM"]
[WhiteFideId "1159259"]
[BlackFideId "14104369"]
[WhiteElo "2500"]
[BlackElo "2546"]

1. e4 {[%clk 01:30:58]} {[%emt 01:01:57]} c5 {[%clk 01:30:56]} 2. Nf3 {[%clk
01:31:22]} {[%emt 00:00:20]} d6 {[%clk 01:31:22]} 3. d4 {[%clk 01:31:45]} cxd4
4. Nxd4 {[%clk 01:32:09]} Nf6 {[%clk 01:32:07]} 5. Nc3 {[%clk 01:32:28]} {[%emt
00:00:20]} Nc6 {[%clk 01:29:43]} {[%emt 00:02:43]} 6. Bg5 {[%clk 01:32:50]}
{[%emt 00:00:10]} e6 {[%clk 01:30:02]} {[%emt 00:00:10]} 7. Qd2 {[%clk
01:33:14]} {[%emt 00:00:10]} a6 {[%clk 01:28:16]} {[%emt 00:02:14]} 8. O-O-O
{[%clk 01:33:29]} {[%emt 00:00:10]} Bd7 {[%clk 01:27:35]} {[%emt 00:01:12]} 9.
f4 {[%clk 01:32:00]} {[%emt 00:02:12]} Be7 {[%clk 01:27:36]} {[%emt 00:00:20]}
10. Nf3 {[%clk 01:28:30]} {[%emt 00:04:04]} b5 {[%clk 01:27:53]} 11. Bxf6 gxf6
{[%clk 01:28:17]} 12. f5 {[%clk 01:18:43]} {[%emt 00:02:02]} Qb6 {[%clk
01:28:10]} {[%emt 00:00:20]} 13. g3 {[%clk 01:11:22]} {[%emt 00:08:08]} O-O-O
{[%clk 01:28:10]} {[%emt 00:00:20]} 14. Bh3 {[%clk 01:10:37]} {[%emt 00:01:21]}
Kb8 {[%clk 00:48:29]} {[%emt 00:40:14]} 15. fxe6 fxe6 {[%clk 00:48:56]} 16. Kb1
{[%clk 01:02:55]} {[%emt 00:01:01]} Bc8 {[%clk 00:38:40]} {[%emt 00:10:26]} 17.
Qe1 {[%clk 00:50:24]} {[%emt 00:13:09]} h5 {[%clk 00:35:19]} {[%emt 00:03:44]}
18. Rf1 {[%clk 00:47:15]} {[%emt 00:03:44]} Ne5 {[%clk 00:29:16]} {[%emt
00:06:26]} 19. Ne2 {[%clk 00:42:01]} {[%emt 00:05:46]} Ng4 {[%clk 00:27:40]}
{[%emt 00:02:22]} 20. Nf4 {[%clk 00:39:11]} {[%emt 00:03:23]} Qb7 {[%clk
00:24:46]} {[%emt 00:03:23]} 21. Qe2 {[%clk 00:35:44]} {[%emt 00:03:44]} Rdg8
{[%clk 00:21:45]} {[%emt 00:03:44]} 22. Nh4 {[%clk 00:32:14]} {[%emt 00:03:44]}
Rh6 {[%clk 00:20:05]} {[%emt 00:02:22]} 23. Nxh5 {[%clk 00:28:36]} {[%emt
00:03:54]} Rxh5 {[%clk 00:19:39]} {[%emt 00:01:01]} 24. Bxg4 {[%clk 00:29:02]}
Re5 {[%clk 00:19:59]} {[%emt 00:00:20]} 25. Bf3 {[%clk 00:27:05]} {[%emt
00:02:22]} d5 {[%clk 00:17:49]} {[%emt 00:02:43]} 26. Rfe1 {[%clk 00:19:13]}
{[%emt 00:08:28]} f5 {[%clk 00:18:08]} 27. Bh5 {[%clk 00:19:29]} {[%emt
00:00:20]} Bxh4 {[%clk 00:15:52]} {[%emt 00:02:43]} 28. gxh4 {[%clk 00:19:58]}
Rxe4 {[%clk 00:16:13]} {[%emt 00:00:20]} 29. Qf2 {[%clk 00:19:46]} {[%emt
00:00:41]} Qa7 {[%clk 00:16:32]} 30. Qf3 {[%clk 00:17:15]} {[%emt 00:03:03]}
Rxh4 {[%clk 00:16:03]} {[%emt 00:01:01]} 31. Qe2 {[%clk 00:17:06]} {[%emt
00:00:41]} Qc7 {[%clk 00:15:30]} {[%emt 00:01:01]} 32. Bf3 {[%clk 00:16:47]}
{[%emt 00:00:41]} Rxh2 {[%clk 00:15:37]} {[%emt 00:00:41]} 33. Qe3 {[%clk
00:17:17]} 0-1

[Event "Smuk Skak GM Tournament 2021"]
[Site "Skanderborg, Denmark"]
[Date "2021.08.18"]
[Round "5.4"]
[White "Antolak, Julia"]
[Black "Nagy, Gabor"]
[Result "0-1"]
[TimeControl "90 minutes + 30 minutes at move 40, 30 secs pr move from move 1"]
[WhiteTitle "WIM"]
[BlackTitle "GM"]
[WhiteFideId "1159569"]
[BlackFideId "737119"]
[WhiteElo "2340"]
[BlackElo "2518"]

1. e4 {[%clk 01:30:56]} {[%emt 01:01:56]} c5 {[%clk 01:30:38]} {[%emt
00:00:20]} 2. Nf3 {[%clk 01:31:20]} {[%emt 00:00:20]} e6 {[%clk 01:30:54]} 3.
d4 cxd4 {[%clk 01:31:16]} 4. Nxd4 {[%clk 01:32:09]} Nc6 {[%clk 01:31:36]}
{[%emt 00:00:20]} 5. Nc3 {[%clk 01:32:30]} a6 {[%clk 01:31:31]} {[%emt
00:00:30]} 6. Nxc6 {[%clk 01:30:52]} {[%emt 00:02:13]} bxc6 {[%clk 01:31:44]}
{[%emt 00:00:10]} 7. Bd3 {[%clk 01:31:11]} {[%emt 00:00:10]} d5 {[%clk
01:31:57]} {[%emt 00:00:21]} 8. Qf3 {[%clk 01:30:56]} {[%emt 00:00:52]} g6
{[%clk 01:31:01]} {[%emt 00:01:23]} 9. O-O {[%clk 01:27:55]} {[%emt 00:03:24]}
Bg7 {[%clk 01:31:10]} {[%emt 00:00:41]} 10. Bd2 {[%clk 01:26:18]} {[%emt
00:02:02]} Ne7 {[%clk 01:28:42]} {[%emt 00:03:03]} 11. Rad1 {[%clk 01:22:59]}
{[%emt 00:03:44]} O-O {[%clk 01:28:36]} {[%emt 00:00:41]} 12. Na4 {[%clk
01:08:45]} {[%emt 00:14:34]} f5 {[%clk 01:20:32]} {[%emt 00:08:28]} 13. exd5
{[%clk 01:01:12]} {[%emt 00:08:01]} cxd5 {[%clk 01:20:48]} {[%emt 00:00:14]} 14.
Rfe1 {[%clk 00:52:17]} {[%emt 00:09:37]} e5 {[%clk 01:20:11]} {[%emt 00:01:01]}
15. Bg5 {[%clk 00:52:36]} {[%emt 00:00:20]} e4 {[%clk 01:18:56]} {[%emt
00:01:42]} 16. Qe3 {[%clk 00:51:05]} {[%emt 00:02:02]} h6 {[%clk 01:15:05]}
{[%emt 00:04:24]} 17. Bxe7 {[%clk 00:45:01]} {[%emt 00:06:26]} Qxe7 {[%clk
01:15:23]} {[%emt 00:00:20]} 18. Nb6 {[%clk 00:44:27]} {[%emt 00:01:01]} f4
{[%clk 01:01:19]} {[%emt 00:14:34]} 19. Qd2 {[%clk 00:41:15]} {[%emt 00:03:29]}
Qb7 {[%clk 00:55:48]} {[%emt 00:06:13]} 20. Nxa8 {[%clk 00:27:27]} {[%emt
00:14:14]} exd3 21. Qxd3 {[%clk 00:27:48]} Bf5 {[%clk 00:55:54]} {[%emt
00:00:41]} 22. Qxd5+ {[%clk 00:26:53]} {[%emt 00:01:21]} Qxd5 23. Rxd5 {[%clk
00:27:20]} Rxa8 {[%clk 00:55:40]} 24. c3 {[%clk 00:24:24]} {[%emt 00:03:23]}
Rb8 {[%clk 00:56:02]} {[%emt 00:00:20]} 25. Rd2 {[%clk 00:23:45]} {[%emt
00:01:01]} h5 {[%clk 00:56:17]} {[%emt 00:00:20]} 26. h3 {[%clk 00:19:57]}
{[%emt 00:04:04]} f3 {[%clk 00:54:51]} {[%emt 00:02:02]} 27. Re7 {[%clk
00:16:36]} {[%emt 00:04:04]} Bh6 {[%clk 00:54:53]} {[%emt 00:00:20]} 28. Rd1
{[%clk 00:12:33]} {[%emt 00:04:24]} Bf8 {[%clk 00:54:57]} {[%emt 00:00:41]} 29.
Ra7 {[%clk 00:11:58]} {[%emt 00:01:01]} Rxb2 {[%clk 00:51:00]} {[%emt
00:04:24]} 30. Rd8 {[%clk 00:09:59]} {[%emt 00:02:22]} Be4 {[%clk 00:49:04]}
{[%emt 00:02:23]} 31. gxf3 {[%clk 00:06:31]} {[%emt 00:04:14]} Bxf3 {[%clk
00:49:17]} 32. h4 {[%clk 00:06:48]} {[%emt 00:00:20]} Rb6 {[%clk 00:48:13]}
{[%emt 00:01:42]} 33. Kh2 {[%clk 00:04:15]} {[%emt 00:03:03]} Rf6 {[%clk
00:47:36]} {[%emt 00:01:01]} 34. Kg3 {[%clk 00:02:16]} {[%emt 00:02:22]} Be4
{[%clk 00:47:57]} {[%emt 00:00:20]} 35. Re7 {[%clk 00:00:50]} {[%emt 00:02:02]}
Rf3+ {[%clk 00:47:07]} {[%emt 00:01:01]} 36. Kh2 {[%clk 00:01:15]} {[%emt
00:00:20]} Rxf2+ {[%clk 00:45:34]} {[%emt 00:02:02]} 37. Kg3 {[%clk 00:01:42]}
Rf3+ {[%clk 00:45:26]} {[%emt 00:00:41]} 38. Kh2 {[%clk 00:02:09]} Bd5 {[%clk
00:44:02]} {[%emt 00:02:02]} 39. Ra7 {[%clk 00:01:46]} {[%emt 00:00:41]} Bc4
{[%clk 00:42:54]} {[%emt 00:01:42]} 40. Kg2 {[%clk 00:00:43]} {[%emt 00:01:42]}
Rf6 {[%clk 00:41:30]} {[%emt 00:01:42]} 41. a3 {[%clk 00:27:35]} {[%emt
00:03:33]} Bf7 {[%clk 01:11:37]} {[%emt 00:00:28]} 42. Rc8 {[%clk 00:24:27]}
{[%emt 00:03:41]} Bd5+ 43. Kh2 {[%clk 00:24:27]} Rf4 44. Kg3 {[%clk 00:24:27]}
Rg4+ 45. Kh3 {[%clk 00:24:27]} Ra4 46. Re7 {[%clk 00:24:27]} Bf7 47. Kg3 {[%clk
00:24:27]} Rxa3 48. Ra7 {[%clk 00:24:27]} Kg7 49. Kf3 {[%clk 00:24:27]} Ra5 50.
Rcc7 {[%clk 00:24:27]} Rf5+ 51. Ke4 {[%clk 00:24:27]} a5 52. c4 {[%clk
00:24:27]} Bd6 53. Rd7 {[%clk 00:24:27]} Bb4 54. Rdc7 {[%clk 00:24:27]} Bc5 55.
Rab7 {[%clk 00:24:27]} a4 56. Rb5 {[%clk 00:24:27]} Bd6 57. Rd7 {[%clk
00:24:27]} Rf4+ 58. Ke3 {[%clk 00:24:27]} Rf6 59. c5 {[%clk 00:24:27]} Bf4+ 60.
Ke4 {[%clk 00:24:27]} Bg3 61. Rbb7 {[%clk 00:24:27]} a3 62. Ra7 {[%clk
00:24:27]} Bf2 63. Rxa3 {[%clk 00:24:27]} Bxc5 64. Rf3 {[%clk 00:24:27]} Bf2 65.
Rh3 {[%clk 00:24:27]} Be1 66. Ra7 {[%clk 00:24:27]} Kh6 {[%clk 00:32:31]} 0-1

[Event "Smuk Skak GM Tournament 2021"]
[Site "Skanderborg, Denmark"]
[Date "2021.08.18"]
[Round "5.5"]
[White "Olsen, Filip Boe"]
[Black "Lindgren, Phillip"]
[Result "1/2-1/2"]
[TimeControl "90 minutes + 30 minutes at move 40, 30 secs pr move from move 1"]
[WhiteTitle "IM"]
[BlackTitle "IM"]
[WhiteFideId "1440640"]
[BlackFideId "1713230"]
[WhiteElo "2397"]
[BlackElo "2356"]

1. c4 {[%clk 01:30:53]} {[%emt 01:01:56]} Nf6 {[%clk 01:27:16]} {[%emt
00:03:44]} 2. Nc3 {[%clk 01:30:45]} {[%emt 00:00:41]} e6 {[%clk 01:25:52]}
{[%emt 00:01:53]} 3. e4 {[%clk 01:29:58]} {[%emt 00:01:23]} d5 {[%clk
01:24:54]} {[%emt 00:01:22]} 4. e5 {[%clk 01:29:26]} {[%emt 00:01:01]} d4
{[%clk 01:23:18]} {[%emt 00:02:22]} 5. exf6 {[%clk 01:29:17]} {[%emt 00:00:20]}
dxc3 {[%clk 01:23:39]} {[%emt 00:00:20]} 6. bxc3 {[%clk 01:28:47]} {[%emt
00:01:01]} Qxf6 {[%clk 01:23:35]} {[%emt 00:00:41]} 7. d4 {[%clk 01:28:41]}
{[%emt 00:00:20]} Nd7 {[%clk 01:19:30]} {[%emt 00:04:45]} 8. Nf3 {[%clk
01:28:47]} {[%emt 00:00:20]} h6 {[%clk 01:17:13]} {[%emt 00:02:43]} 9. Bd3
{[%clk 01:28:52]} {[%emt 00:00:20]} Bd6 {[%clk 01:07:10]} {[%emt 00:10:50]} 10.
O-O {[%clk 01:28:30]} {[%emt 00:00:41]} O-O {[%clk 01:02:58]} {[%emt 00:04:45]}
11. c5 {[%clk 01:27:51]} {[%emt 00:01:01]} Bf4 {[%clk 00:59:12]} {[%emt
00:04:24]} 12. Ba3 {[%clk 01:27:59]} {[%emt 00:00:20]} c6 {[%clk 00:57:17]}
{[%emt 00:02:19]} 13. Qe2 {[%clk 01:28:01]} {[%emt 00:00:26]} h5 {[%clk
00:40:53]} {[%emt 00:17:09]} 14. Rae1 {[%clk 01:24:33]} {[%emt 00:03:44]} g6
{[%clk 00:38:53]} {[%emt 00:02:43]} 15. Nd2 {[%clk 01:18:49]} {[%emt 00:06:06]}
Qe7 {[%clk 00:34:40]} {[%emt 00:04:45]} 16. Ne4 {[%clk 01:17:40]} {[%emt
00:01:42]} b6 {[%clk 00:28:15]} {[%emt 00:06:47]} 17. Qf3 {[%clk 01:15:07]}
{[%emt 00:03:03]} Bb8 {[%clk 00:24:49]} {[%emt 00:04:03]} 18. Nd6 {[%clk
01:12:59]} {[%emt 00:02:35]} bxc5 {[%clk 00:24:10]} {[%emt 00:01:12]} 19. dxc5
{[%clk 01:11:33]} {[%emt 00:01:52]} Nxc5 {[%clk 00:18:09]} {[%emt 00:06:47]} 20.
Ne4 {[%clk 00:53:12]} {[%emt 00:18:38]} Qc7 {[%clk 00:18:06]} {[%emt 00:00:41]}
21. g3 {[%clk 00:53:25]} {[%emt 00:00:20]} Nxd3 {[%clk 00:16:18]} {[%emt
00:02:02]} 22. Nf6+ {[%clk 00:52:36]} {[%emt 00:01:21]} Kg7 {[%clk 00:15:30]}
{[%emt 00:01:21]} 23. Bxf8+ Kxf8 {[%clk 00:15:51]} 24. Qxd3 {[%clk 00:53:16]}
{[%emt 00:00:20]} Qe7 {[%clk 00:12:25]} {[%emt 00:03:44]} 25. Rd1 {[%clk
00:52:20]} {[%emt 00:01:21]} Bc7 {[%clk 00:12:01]} {[%emt 00:01:01]} 26. Ne4
{[%clk 00:52:32]} {[%emt 00:00:20]} e5 {[%clk 00:11:18]} {[%emt 00:01:21]} 27.
Qc4 {[%clk 00:51:02]} {[%emt 00:01:42]} Bg4 {[%clk 00:07:03]} {[%emt 00:04:44]}
28. Qxc6 {[%clk 00:49:36]} {[%emt 00:02:03]} Rc8 {[%clk 00:06:59]} {[%emt
00:00:29]} 29. Nf6 {[%clk 00:47:42]} {[%emt 00:02:25]} Bxd1 {[%clk 00:04:45]}
{[%emt 00:02:43]} 30. Rxd1 {[%clk 00:47:59]} {[%emt 00:00:20]} Kg7 {[%clk
00:03:24]} {[%emt 00:02:02]} 31. Ne4 {[%clk 00:43:30]} {[%emt 00:04:45]} Rd8
{[%clk 00:03:13]} {[%emt 00:00:41]} 32. Rd5 {[%clk 00:38:53]} {[%emt 00:05:05]}
Rxd5 {[%clk 00:02:56]} {[%emt 00:01:01]} 33. Qxd5 {[%clk 00:38:22]} {[%emt
00:01:01]} Bb6 {[%clk 00:02:30]} {[%emt 00:00:41]} 34. h4 {[%clk 00:38:22]}
{[%emt 00:00:41]} f5 {[%clk 00:01:29]} {[%emt 00:01:21]} 35. Ng5 {[%clk
00:38:24]} {[%emt 00:00:41]} e4 {[%clk 00:01:19]} {[%emt 00:00:41]} 36. Ne6+
{[%clk 00:36:24]} {[%emt 00:02:22]} Kh7 {[%clk 00:00:34]} {[%emt 00:01:21]} 37.
Qe5 {[%clk 00:35:50]} {[%emt 00:01:01]} Kg8 {[%clk 00:00:36]} {[%emt 00:00:20]}
38. c4 {[%clk 00:35:22]} {[%emt 00:00:55]} Kf7 {[%clk 00:00:32]} {[%emt
00:00:34]} 39. Ng5+ {[%clk 00:34:44]} {[%emt 00:01:10]} Ke8 {[%clk 00:00:48]}
{[%emt 00:00:21]} 40. Qe6 Qxe6 {[%clk 00:00:48]} 41. Nxe6 Kf7 {[%clk 00:00:48]}
42. Nf4 Bd4 {[%clk 00:00:48]} 43. Kf1 Kf6 {[%clk 00:00:48]} 44. Ke2 Bc5 {[%clk
00:00:48]} 45. f3 Bd4 {[%clk 00:00:48]} 46. Nd5+ Ke6 {[%clk 00:00:48]} 47. Nc7+
Ke5 {[%clk 00:00:48]} 48. Nd5 Bc5 {[%clk 00:00:48]} 49. Nf4 Kf6 {[%clk
00:00:48]} 50. Nd5+ Ke5 {[%clk 00:00:48]} 51. Nf4 Kf6 {[%clk 00:00:48]} 52.
Nd5+ Ke5 {[%clk 00:00:48]} 53. Nf4 1/2-1/2

[Event "Smuk Skak GM Tournament 2021"]
[Site "Skanderborg, Denmark"]
[Date "????.??.??"]
[Round "6.1"]
[White "Lindgren, Phillip"]
[Black "Antolak, Julia"]
[Result "0-1"]
[TimeControl "90 minutes + 30 minutes at move 40, 30 secs pr move from move 1"]
[WhiteTitle "IM"]
[BlackTitle "WIM"]
[WhiteFideId "1713230"]
[BlackFideId "1159569"]
[WhiteElo "2356"]
[BlackElo "2340"]

1. d4 {[%clk 01:30:53]} {[%emt 00:00:06]} Nf6 {[%clk 01:30:53]} {[%emt
00:00:08]} 2. c4 {[%clk 01:31:11]} {[%emt 00:00:12]} c5 {[%clk 01:31:15]}
{[%emt 00:00:08]} 3. d5 {[%clk 01:30:57]} {[%emt 00:00:44]} b5 {[%clk
01:31:40]} {[%emt 00:00:06]} 4. cxb5 {[%clk 01:30:28]} {[%emt 00:00:59]} a6
{[%clk 01:32:04]} {[%emt 00:00:06]} 5. f3 {[%clk 01:28:25]} {[%emt 00:02:39]}
e6 {[%clk 01:30:54]} {[%emt 00:01:43]} 6. e4 {[%clk 01:27:28]} {[%emt
00:01:17]} c4 {[%clk 01:29:44]} {[%emt 00:01:48]} 7. Bxc4 {[%clk 01:06:26]}
{[%emt 00:21:25]} axb5 {[%clk 01:29:47]} {[%emt 00:00:41]} 8. Bxb5 {[%clk
00:50:27]} {[%emt 00:16:16]} Bc5 {[%clk 01:29:16]} {[%emt 00:01:01]} 9. Nc3
{[%clk 00:48:06]} {[%emt 00:03:03]} O-O {[%clk 01:15:03]} {[%emt 00:14:34]} 10.
Nge2 {[%clk 00:45:08]} {[%emt 00:03:44]} Qb6 {[%clk 01:07:45]} {[%emt
00:07:47]} 11. Bg5 {[%clk 00:37:26]} {[%emt 00:08:08]} Na6 {[%clk 00:59:32]}
{[%emt 00:08:48]} 12. Qd2 {[%clk 00:28:36]} {[%emt 00:09:09]} h6 {[%clk
00:33:44]} {[%emt 00:26:15]} 13. Bf4 {[%clk 00:16:56]} {[%emt 00:12:12]} exd5
{[%clk 00:32:35]} {[%emt 00:01:42]} 14. exd5 {[%clk 00:16:00]} {[%emt
00:01:21]} Nb4 {[%clk 00:27:47]} {[%emt 00:05:25]} 15. Bc4 {[%clk 00:15:37]}
{[%emt 00:01:01]} Ba6 {[%clk 00:25:01]} {[%emt 00:03:03]} 16. Bxa6 {[%clk
00:14:18]} {[%emt 00:02:02]} Qxa6 {[%clk 00:24:38]} {[%emt 00:00:41]} 17. Rd1
{[%clk 00:10:34]} {[%emt 00:04:24]} Rfe8 {[%clk 00:22:03]} {[%emt 00:03:03]} 18.
d6 {[%clk 00:06:23]} {[%emt 00:04:30]} Nbd5 {[%clk 00:19:12]} {[%emt 00:03:26]}
19. Kf1 {[%clk 00:02:55]} {[%emt 00:04:04]} Be3 {[%clk 00:11:41]} {[%emt
00:07:47]} 20. Bxe3 {[%clk 00:02:48]} {[%emt 00:00:41]} Nxe3+ {[%clk 00:12:07]}
21. Kf2 {[%clk 00:03:07]} {[%emt 00:00:20]} Qb6 {[%clk 00:11:11]} {[%emt
00:01:21]} 22. Qd4 {[%clk 00:02:34]} {[%emt 00:01:01]} Nxd1+ 23. Rxd1 {[%clk
00:02:52]} Qxb2 {[%clk 00:11:50]} {[%emt 00:00:20]} 24. Rd2 {[%clk 00:03:03]}
{[%emt 00:00:20]} Qb7 {[%clk 00:11:46]} {[%emt 00:00:41]} 25. g4 {[%clk
00:00:36]} {[%emt 00:02:43]} Ra6 {[%clk 00:11:16]} {[%emt 00:01:01]} 26. h4
{[%clk 00:00:34]} {[%emt 00:00:41]} Re6 {[%clk 00:10:25]} {[%emt 00:01:21]} 27.
Kg3 {[%clk 00:00:32]} {[%emt 00:00:20]} Raxd6 {[%clk 00:09:01]} {[%emt
00:02:02]} 28. Qf4 {[%clk 00:00:36]} {[%emt 00:00:20]} Rxd2 29. Qxd2 {[%clk
00:01:01]} Qc7+ {[%clk 00:08:51]} {[%emt 00:00:20]} 30. Kg2 {[%clk 00:00:33]}
{[%emt 00:01:01]} Qd6 {[%clk 00:08:59]} {[%emt 00:00:20]} 31. Qb2 {[%clk
00:00:32]} {[%emt 00:00:20]} Qe5 {[%clk 00:08:05]} {[%emt 00:01:21]} 32. a4
{[%clk 00:00:35]} {[%emt 00:00:41]} Nd5 {[%clk 00:07:16]} {[%emt 00:01:21]} 33.
Qb3 {[%clk 00:00:32]} {[%emt 00:00:20]} Nxc3 34. Nxc3 {[%clk 00:00:54]} Qe1
{[%clk 00:03:21]} {[%emt 00:01:42]} 35. Ne4 {[%clk 00:00:32]} {[%emt 00:01:01]}
Qxh4 {[%clk 00:02:41]} {[%emt 00:01:01]} 36. a5 {[%clk 00:00:32]} {[%emt
00:00:41]} Qd8 {[%clk 00:02:03]} {[%emt 00:01:01]} 37. Qb5 {[%clk 00:00:31]}
{[%emt 00:00:41]} Qc8 {[%clk 00:02:26]} 38. Nc5 {[%clk 00:00:32]} {[%emt
00:00:20]} Re5 {[%clk 00:02:35]} {[%emt 00:00:20]} 0-1

[Event "Smuk Skak GM Tournament 2021"]
[Site "Skanderborg, Denmark"]
[Date "????.??.??"]
[Round "6.2"]
[White "Solodovnichenko, Yuri"]
[Black "Olsen, Filip Boe"]
[Result "1/2-1/2"]
[TimeControl "90 minutes + 30 minutes at move 40, 30 secs pr move from move 1"]
[WhiteTitle "GM"]
[BlackTitle "IM"]
[WhiteFideId "14104369"]
[BlackFideId "1440640"]
[WhiteElo "2546"]
[BlackElo "2397"]

1. e4 {[%clk 01:30:54]} {[%emt 00:00:04]} c5 {[%clk 01:30:38]} {[%emt
00:00:23]} 2. Nf3 {[%clk 01:31:08]} {[%emt 00:00:16]} d6 {[%clk 01:30:57]}
{[%emt 00:00:16]} 3. d4 {[%clk 01:31:33]} cxd4 {[%clk 01:31:20]} {[%emt
00:00:10]} 4. Nxd4 {[%clk 01:31:59]} {[%emt 00:00:04]} Nf6 {[%clk 01:31:41]}
{[%emt 00:00:06]} 5. Nc3 {[%clk 01:32:25]} {[%emt 00:00:04]} a6 {[%clk
01:32:06]} {[%emt 00:00:05]} 6. Be3 {[%clk 01:31:55]} {[%emt 00:01:00]} Ng4
{[%clk 01:32:24]} {[%emt 00:00:22]} 7. Bc1 {[%clk 01:31:13]} {[%emt 00:01:02]}
Nf6 {[%clk 01:32:46]} {[%emt 00:00:10]} 8. h3 {[%clk 01:31:01]} {[%emt
00:00:41]} e5 {[%clk 01:33:01]} {[%emt 00:00:21]} 9. Nb3 {[%clk 01:31:15]}
{[%emt 00:00:10]} h5 {[%clk 01:33:15]} {[%emt 00:00:21]} 10. Be2 {[%clk
01:23:31]} {[%emt 00:08:15]} Be6 {[%clk 01:30:30]} {[%emt 00:03:17]} 11. O-O
{[%clk 01:17:02]} {[%emt 00:06:52]} Nbd7 {[%clk 01:26:00]} {[%emt 00:05:17]} 12.
a4 {[%clk 01:14:49]} {[%emt 00:02:43]} Rc8 {[%clk 01:23:47]} {[%emt 00:02:43]}
13. Bg5 {[%clk 01:10:26]} {[%emt 00:04:45]} Be7 {[%clk 01:23:36]} {[%emt
00:00:41]} 14. a5 {[%clk 01:10:03]} {[%emt 00:01:01]} g6 {[%clk 01:22:06]}
{[%emt 00:02:02]} 15. Re1 {[%clk 00:57:56]} {[%emt 00:12:32]} O-O {[%clk
01:21:19]} {[%emt 00:01:21]} 16. Bf3 {[%clk 00:55:58]} {[%emt 00:02:22]} Nh7
{[%clk 01:13:33]} {[%emt 00:08:08]} 17. Be3 {[%clk 00:47:43]} {[%emt 00:08:48]}
Rc6 {[%clk 01:03:57]} {[%emt 00:10:10]} 18. Nc1 {[%clk 00:34:01]} {[%emt
00:14:14]} Bg5 {[%clk 00:54:49]} {[%emt 00:09:25]} 19. Nd3 {[%clk 00:34:15]}
{[%emt 00:00:21]} Bxe3 20. Rxe3 {[%clk 00:34:41]} Nhf6 {[%clk 00:50:33]} {[%emt
00:01:01]} 21. Be2 {[%clk 00:27:52]} {[%emt 00:07:27]} Qc7 {[%clk 00:34:44]}
{[%emt 00:16:16]} 22. f4 {[%clk 00:17:44]} {[%emt 00:10:30]} exf4 23. Nxf4
{[%clk 00:18:10]} Re8 {[%clk 00:32:36]} {[%emt 00:02:02]} 24. Qd4 {[%clk
00:17:18]} {[%emt 00:01:21]} Bc4 {[%clk 00:26:51]} {[%emt 00:06:06]} 25. Kh1
{[%clk 00:10:30]} {[%emt 00:07:17]} Re5 {[%clk 00:22:39]} {[%emt 00:04:43]} 26.
Rf1 {[%clk 00:06:47]} {[%emt 00:04:25]} Bxe2 27. Rxe2 {[%clk 00:07:11]} Rc4
{[%clk 00:10:31]} {[%emt 00:07:27]} 28. Qd3 {[%clk 00:07:38]} Qc5 {[%clk
00:09:13]} {[%emt 00:01:42]} 29. Nfd5 {[%clk 00:03:43]} {[%emt 00:04:24]} Nxe4
{[%clk 00:06:13]} {[%emt 00:03:44]} 30. Rxe4 {[%clk 00:01:45]} {[%emt
00:02:22]} Rcxe4 {[%clk 00:06:21]} {[%emt 00:00:20]} 31. Nxe4 {[%clk 00:02:05]}
{[%emt 00:00:20]} Qxd5 {[%clk 00:06:39]} 32. Nxd6 {[%clk 00:01:45]} {[%emt
00:01:01]} Qxd3 33. cxd3 {[%clk 00:02:15]} f5 {[%clk 00:02:52]} {[%emt
00:02:22]} 34. Rc1 {[%clk 00:00:42]} {[%emt 00:02:02]} Rxa5 {[%clk 00:02:19]}
{[%emt 00:01:01]} 35. Rc8+ {[%clk 00:00:43]} {[%emt 00:00:20]} Nf8 {[%clk
00:02:47]} 36. Nxb7 {[%clk 00:00:58]} {[%emt 00:00:20]} Rb5 {[%clk 00:02:32]}
{[%emt 00:00:41]} 37. Nc5 {[%clk 00:01:20]} {[%emt 00:00:20]} Kf7 {[%clk
00:01:35]} {[%emt 00:01:21]} 38. Rc7+ {[%clk 00:01:48]} Kf6 {[%clk 00:01:26]}
{[%emt 00:00:41]} 39. b3 {[%clk 00:01:15]} {[%emt 00:01:01]} Ne6 {[%clk
00:01:16]} {[%emt 00:00:34]} 40. Nxe6 {[%clk 00:01:21]} {[%emt 00:00:24]} Kxe6
{[%clk 00:01:43]} {[%emt 00:00:02]} 41. Rc6+ {[%clk 00:01:47]} {[%emt
00:00:04]} Kf7 {[%clk 00:01:00]} {[%emt 00:01:12]} 42. Rxa6 {[%clk 00:01:59]}
{[%emt 00:00:19]} 1/2-1/2